Cogmind - Beta 17.1 *** ADVENTURER MODE // 2026.09.09 @ 03:02:31 Player: empy the penguin Result: Self-destructed Performance ------------- Evolutions (1) 500 Regions Visited (2) 400 Robots Destroyed (5) 25 Value Destroyed (98) 98 Prototype IDs (0) 0 Alien Tech Used (0) 0 Bonus (0) 0 TOTAL SCORE: 1023 Bonus ------- None Cogmind --------- Core Integrity 400/400 Matter 270/300 Energy 250/250 System Corruption 0% Temperature Cool (0) Movement Rolling (90) Location -9/Materials Parts ------- > --- POWER (1) -------- Ion Engine > --- PROPULSION (2) --- Wheel Compact Wheel > --- UTILITY (4) ------ Small Storage Unit Structural Scanner > --- WEAPON (2) ------- Assault Rifle Light Cannon > --- INVENTORY (8) ---- Ion Engine Ion Engine Small Matter Pod (50) Power Shielding Peak State ------------ > --- POWER ------------ Ion Engine > --- PROPULSION ------- Wheel Compact Wheel > --- UTILITY ---------- Small Storage Unit Structural Scanner > --- WEAPON ----------- Small Laser Small Laser > --- INVENTORY -------- Ion Engine Small Matter Pod Assault Rifle [Rating: 7] Favorites ----------- Power Ion Engine Engine Ion Engine Propulsion Compact Wheel Wheel Compact Wheel Utility Small Storage Unit Device Structural Scanner Storage Small Storage Unit Weapon Small Laser Energy Gun Small Laser Ballistic Gun Assault Rifle Ballistic Cannon Light Cannon Build | -11 -10 -9 ------- Run | Yrd Mat Mat Slots Evolved 2 | . . 2 Power . | . . . Propulsion . | . . . Utility 2 | . . 2 Weapon . | . . . Parts Attached 9 | 6 3 . Power 1 | 1 . . Engine 1 | 1 . . Core . | . . . Reactor . | . . . Propulsion 2 | 2 . . Treads . | . . . Leg . | . . . Wheel 2 | 2 . . Hover . | . . . Flight . | . . . Utility 2 | 1 1 . Device 1 | . 1 . Storage 1 | 1 . . Processor . | . . . Hackware . | . . . Protection . | . . . Artifact . | . . . Weapon 4 | 2 2 . Energy Gun 2 | 2 . . Energy Cannon . | . . . Ballistic Gun 1 | . 1 . Ballistic Cannon 1 | . 1 . Launcher . | . . . Special Weapon . | . . . Impact Weapon . | . . . Slashing Weapon . | . . . Piercing Weapon . | . . . Special Melee Weapon . | . . . Unidentified Prototypes . | . . . Parts Lost . | . . . Power . | . . . Propulsion . | . . . Utility . | . . . Weapon . | . . . Highest Loss Streak . | . . . To Critical Strikes . | . . . Average Backups 2 | . 3 4 Power 1 | . 1 2 Propulsion . | . . . Utility 1 | . 1 2 Weapon . | . . . Tool/Special . | . . . Unused Backups 5 | . 1 4 Power 2 | . . 2 Propulsion . | . . . Utility 2 | . . 2 Weapon 1 | . 1 . Tool/Special . | . . . Average Slot Usage (%) 92 | . 93 77 Engine 13 | . 14 11 Wheel 27 | . 28 22 Device 7 | . 7 11 Storage 13 | . 14 11 Energy Gun 16 | . 17 . Ballistic Gun 5 | . 5 11 Ballistic Cannon 5 | . 5 11 Peak Build Rating 7 | 6 7 7 Average Rating 6 | 4 6 7 On Entrance 4 | . 6 7 Avg Prop Armor Cover (%) . | . . . Naked Turns . | . . . Heaviest Build 16 | 12 16 16 Greatest Support 26 | 26 26 26 Greatest Overweight (x) . | . . . Average Overweight (x) . | . . . Largest Inventory Capacity 8 | 8 8 8 Average Capacity 7 | 6 8 8 Most Carried 7 | 1 7 4 Average Carried 2 | . 3 4 Final Capacity 8 | 8 8 8 Final Carried 4 | 1 4 4 Class Distribution -------------------- 100% | Mutant Dominant Class ---------------- Mutant | -10/Materials Mutant | -9/Materials Resources | -11 -10 -9 ----------- Run | Yrd Mat Mat Matter Collected 320 | 243 77 . Remotely . | . . . Salvage Created 119 | . 119 . Parts 10 | . 10 . Haulers Intercepted . | . . . Recyclers Shooed 1 | . 1 . Parts Field Recycled . | . . . Retrieved Matter . | . . . Parts Self-Destructed . | . . . Prevented . | . . . Parts Restored . | . . . Kills | -11 -10 -9 ------- Run | Yrd Mat Mat Combat Hostiles Destroyed 5 | . 5 . Guns 5 | . 5 . Classes Destroyed 2 | . 2 . Swarmer 3 | . 3 . Grunt 2 | . 2 . Best Kill Streak 3 | . 3 . Combat Bots Only 3 | . 3 . Max Kills in Single Turn 1 | . 1 . Gunslinging . | . . . Exploded . | . . . Melee . | . . . Uniques/NPCs Destroyed . | . . . Combat | -11 -10 -9 -------- Run | Yrd Mat Mat Hostile Shots Fired 26 | . 26 . Missed 11 | . 11 . Hits 15 | . 15 . Projectile 15 | . 15 . Damage Taken 115 | . 115 . Core 14 | . 14 . Absorbed by Shields . | . . . Ignored by Resistances 37 | . 37 . Core Remaining (%) 97 | 100 94 . Volleys Fired 13 | . 13 . Largest 2 | . 2 . Hottest 80 | . 80 . Shots Fired 26 | . 26 . Gun 26 | . 26 . Cannon . | . . . Launcher . | . . . Special . | . . . Kinetic . | . . . Thermal 26 | . 26 . Explosive . | . . . Electromagnetic . | . . . Robot Hit Streak 16 | . 16 . Robot Miss Streak 1 | . 1 . Penetration Max . | . . . Secondary Targets 2 | . 2 . Max Gunslinging Chain 1 | . 1 . Shots Hit Robots 22 | . 22 . Core Hits 7 | . 7 . Critical Kills . | . . . Critical Parts Destroyed . | . . . Critical Strikes . | . . . Melee Attacks . | . . . Impact . | . . . Slashing . | . . . Piercing . | . . . Sneak Attacks . | . . . Combat Hostiles . | . . . Follow-up Attacks . | . . . Damage Inflicted 237 | . 237 . Guns 234 | . 234 . Cannons . | . . . Explosions . | . . . Melee . | . . . Ramming 3 | . 3 . Kinetic . | . . . Thermal 234 | . 234 . Explosive . | . . . Electromagnetic . | . . . Impact . | . . . Slashing . | . . . Piercing . | . . . Highest Corruption . | . . . Average Corruption . | . . . Corruption Purged . | . . . Corruption Blocked . | . . . Overload Shots . | . . . Overflow Damage . | . . . Projectiles . | . . . Explosions . | . . . Melee . | . . . Knockbacks . | . . . Impact . | . . . Kinetic . | . . . Secondary . | . . . Self-Inflicted Damage 1 | . 1 . Shots . | . . . Rammed 2 | . 2 . Targets Rammed 2 | . 2 . Kicked . | . . . Crushed . | . . . Highest Temperature 130 | . 130 . Average Temperature 56 | . 56 . Received Heat Transfer 48 | . 48 . Siege Activations . | . . . Martial Activations . | . . . Shielding Activations . | . . . Robots Disrupted . | . . . Combat Hostiles . | . . . Robots Corrupted . | . . . Combat Hostiles . | . . . Parts Fried . | . . . Impact Corruptions . | . . . Robots Melted . | . . . Combat Hostiles . | . . . Parts Melted . | . . . Heat Transferred 525 | . 525 . Parts Sabotaged . | . . . Parts Stolen . | . . . Parts Stripped . | . . . Power Chain Reactions . | . . . Alert | -11 -10 -9 ------- Run | Yrd Mat Mat Maximum Alert Level . | . . . Low Security (%) 100 | 100 100 100 Level 1 . | . . . Level 2 . | . . . Level 3 . | . . . Level 4 . | . . . Level 5 . | . . . High Security . | . . . Max Security . | . . . Peak Influence 78 | . 78 . Initial . | . . . Average 18 | . 21 . Influence Increases 118 | . 118 . Destroy 0b10 Robot/C 100 | . 100 . Destroy Leader 10 | . 10 . Successful Hack 8 | . 8 . Influence Decreases 118 | . 118 . Time Decay 118 | . 118 . Squads Dispatched . | . . . Investigation . | . . . Extermination . | . . . Reinforcement . | . . . Assault . | . . . Garrison . | . . . Intercept . | . . . Searches Triggered . | . . . Construction Impeded . | . . . Haulers Reinforced . | . . . Active Scanning Responses . | . . . Cargo Convoy Interrupts . | . . . Stealth | -11 -10 -9 --------- Run | Yrd Mat Mat Distress Signals 2 | . 2 . Communications Jammed . | . . . Distress Signals . | . . . Times Spotted 6 | . 6 . Peak Tracking Total 3 | . 3 . Tactical Retreats . | . . . Traps | -11 -10 -9 ------- Run | Yrd Mat Mat Traps Triggered . | . . . Indirectly . | . . . Trap Hack Attempts . | . . . Triggered . | . . . Disarmed . | . . . Reprogrammed . | . . . Reused . | . . . Traps Extracted . | . . . Installed . | . . . Triggered . | . . . Machines | -11 -10 -9 ---------- Run | Yrd Mat Mat Machines Disabled . | . . . Max in Single Turn . | . . . Machines Repaired . | . . . Machines Dismantled . | . . . Machines Sabotaged . | . . . Overloaded Fab Kills . | . . . Hacking | -11 -10 -9 --------- Run | Yrd Mat Mat Machines Accessed 3 | . 3 . Terminals 3 | . 3 . Fabricators . | . . . Repair Stations . | . . . Recycling Units . | . . . Scanalyzers . | . . . Garrison Access . | . . . Total Hacks 6 | . 6 . Successful 1 | . 1 . Failed 5 | . 5 . Catastrophic 1 | . 1 . Database Lockouts . | . . . Manual 5 | . 5 . Terminals 6 | . 6 . Fabricators . | . . . Repair Stations . | . . . Recycling Units . | . . . Scanalyzers . | . . . Garrison Access . | . . . Terminal Hacks 1 | . 1 . Registered Prototypes 1 | . 1 . Fabricator Hacks . | . . . Repair Station Hacks . | . . . Recycling Unit Hacks . | . . . Scanalyzer . | . . . Garrison Access Hacks . | . . . Unauthorized Hacks . | . . . Terminals . | . . . Fabricators . | . . . Repair Stations . | . . . Recycling Units . | . . . Scanalyzers . | . . . Garrison Access . | . . . Data Cores Recovered . | . . . Used . | . . . Hacking Detections 2 | . 2 . Full Trace Events . | . . . Feedback Events . | . . . Feedback Blocked . | . . . Robot Schematics Acquired . | . . . Robots Built . | . . . Authchips . | . . . Time . | . . . Total Robot Build Rating . | . . . Part Schematics Acquired . | . . . Parts Built . | . . . Authchips . | . . . Time . | . . . Total Part Build Rating . | . . . Part Studies Acquired . | . . . Parts Repaired . | . . . Time . | . . . Parts Recycled . | . . . Recycled Matter . | . . . Retrieved Matter . | . . . Retrieved Components . | . . . Parts Scanalyzed . | . . . Part Schematics Acquired . | . . . Parts Damaged . | . . . Bothacking | -11 -10 -9 ------------ Run | Yrd Mat Mat Used RIF Installer . | . . . Robots Hacked . | . . . Non-combat . | . . . Combat . | . . . Robot Hacks Applied . | . . . Relay Couplers Released . | . . . Fabnet Peak Effective % . | . . . Robots Rewired . | . . . Allies Hacked . | . . . Hacks Repelled . | . . . Allies | -11 -10 -9 -------- Run | Yrd Mat Mat Total Allies . | . . . Largest Group . | . . . Highest-Rated Group . | . . . Highest-Rated Ally . | . . . Total Orders . | . . . Ally Attacks . | . . . Total Damage . | . . . Kills . | . . . Allies Corrupted . | . . . Allies Melted . | . . . Intel | -11 -10 -9 ------- Run | Yrd Mat Mat Active Infowar (turns) 220 | . 209 11 Structural 220 | . 209 11 Robot Analysis Total . | . . . Derelict Logs Recovered . | . . . Drone Launches . | . . . Drone Recoveries . | . . . Exploration | -11 -10 -9 ------------- Run | Yrd Mat Mat Turns Passed 447 | 65 371 11 Spaces Moved 426 | 61 353 12 Core 1 | 1 . . Treads . | . . . Legs . | . . . Wheels 425 | 60 353 12 Hover . | . . . Flight . | . . . Fastest Speed 50 | 50 90 90 Average Speed 90 | 90 90 90 Slowest Speed 100 | 100 90 90 Overloaded Moves . | . . . Propulsion Burnouts . | . . . Robots Hopped . | . . . Potential Cave-ins . | . . . Cave-ins Triggered . | . . . Exploration Rate (%) 16 | 3 43 3 Regions Visited 2 Branch Regions . Pre-discovered Areas . | . . . Known Exits Taken . | . . . Unknown Exits Taken 2 | 1 1 . Scrap Searched . | . . . Spaces Dug . | . . . Terrain Destroyed . | . . . Melee . | . . . Projectile . | . . . AOE . | . . . Terrain Rammed . | . . . Walls Destroyed . | . . . Machines Disabled . | . . . Actions | -11 -10 -9 --------- Run | Yrd Mat Mat Total 462 | 68 382 12 Wait . | . . . Move 424 | 60 352 12 Hop . | . . . Pick Up 7 | 2 5 . Fast Attach 7 | 5 2 . Attach 3 | 1 2 . Detach 3 | . 3 . Swap . | . . . Drop 3 | . 3 . Fire 13 | . 13 . Melee . | . . . Ram 2 | . 2 . Kick . | . . . Crush . | . . . Escape Stasis . | . . . Rewire . | . . . Trap . | . . . Miscellaneous . | . . . Route ------- -11/Scrapyard -10/Materials -9/Materials History --------- Turn | Location | Event 18 | -11/Scrapyard | Discovered new exit (range 15) 66 | -11/Scrapyard | Entered Materials 318 | -10/Materials | Build established: Mutant 358 | -10/Materials | Discovered new exit (range 15) 437 | -10/Materials | Entered another Materials area 437 | -9/Materials | Evolved 2 slots: Utility x2 448 | -9/Materials | Self-destructed Last Messages --------------- 00188_ K-01 Serf collects debris. 00189_ Slammed into R-06 Scavenger. 00191_ Slammed into K-01 Serf. 00228_ Acquired Structural Scanner. 00234_ Acquired Sml. Laser. 00271_ Acquired Power Shielding. 00294_ Acquired Lgt. Cannon. 00296_ Dropped Sml. Laser. 00331_ Connecting with Terminal... 00350_ T-07 Excavator is excavating. 00358_ EXIT=FOUND 00358_ T-07 Excavator is excavating. 00372_ Connecting with Terminal... 00375_ T-07 Excavator is excavating. 00391_ Acquired Ion Engine. 00422_ T-07 Excavator is excavating. 00427_ U-05 Engineer lays Concrete. PARAMETERS=UTILITY+2 LOCATION=UNKNOWN GOAL=ESCAPE Map ----- +----------------------------------------------------+ | ????????????????????????????????????? | | ????????????????????????????????????? | | ????????????????????????????????????? | | ????????????????????????????????????? | | ????????????????????????????????????? | | ????????????????????????????????????? | | ????????????????????????????????????? | | ????????????????????????????????????? | | ????????????????????????????????????? | | ????????????????????????????????????? | | ????????????????????????????????????? | | ????????????????????? # ????????????? | | ??????????????????"" # ????????????? | | ?????????????????""" # ????????????? | | ???????????????? # ????????????? | | ????# # ###???????????? | | ????#####+#### ###???????????? | | ????## ???????????? | | ????## ???????????? | | ????## ???????????? | | ????#####+#############?????????????? | | ????#### ### ?????????????? | | ??????## ##?????????????????? | | ??????## ##?????????????????? | | ??????## = ##?????????????????? | | ??????## @ ##?????????????????? | | ??????## ##?????????????????? | | ??????## u ##?????????????????? | | ??????## ##?????????????????? | | ??????######+######?????????????????? | | ??????###### ######?????????????????? | | ??????????## ##?????????????????????? | | ??????????## ##?????????????????????? | | ??????????## ##?????????????????????? | | ??????????## ##?????????????????????? | | ???????????? ##?????????????????????? | | ???????????? ##?????????????????????? | | ???????????? ?????????????????????? | | ???????????? ??????????????????????? | | ????????????""??????????????????????? | | ????????????????????????????????????? | | ????????????????????????????????????? | | ????????????????????????????????????? | | ????????????????????????????????????? | | ????????????????????????????????????? | | ????????????????????????????????????? | | ????????????????????????????????????? | | ????????????????????????????????????? | | ????????????????????????????????????? | | ????????????????????????????????????? | +----------------------------------------------------+ Best States ------------- Heat Dissipation 28 Energy Generation 10 Energy Capacity 250 Matter Stores 300 Matter Capacity 300 Sight Range 16 Terrain Scan Density 10 Resistance: KI 20 Resistance: TH 20 Resistance: EX 20 Resistance: EM 20 Resistance: I 20 Resistance: S 20 Resistance: P 20 Evasion (%) 42 Offensive Hacking 10 Item Schematics ----------------- None Robot Schematics ------------------ None Fabricated ------------ Nothing Repaired ---------- Nothing Studied --------- None Alien Tech Used ----------------- None Achievements -------------- None Challenges ------------ None Game ------ Seed DispersalShiftDistortion Manual? 0 Play Time 00:04:54 Cumulative 11.9 hours Start 2026.09.07 @ 17:01:40 End 2026.09.09 @ 03:02:31 Sessions 3 Manual Loads 0 Difficulty Adventurer Special Mode None Game No. 8 Rogue 0 Adventurer 6 Explorer 2 Win Type - Total 0 Types 0/0/0/0/0/0/0/0/0/0 Lore% 9 Gallery% 16 Achievement% 13 Wizard Run 0 Options --------- Layout 1 ASCII 0 Keyboard 1 Movement Arrows Keybinds 0 Fullscreen 1 Font 32/SmallcapsGlow Map View 50x35 Zoom Use 0% Tactical HUD 1 Map Filters NONE Filters NONE Steam 1 RUN: 75259074-a082-4ec8-9d30-9771df7e91c0